fUSD/lending_fUSD_20240813
["ID","MTS","AMOUNT","RATE_DAILY","PERIOD"]
[334758118,1723535551899,-338.18913153,0.00022092,2]
[334758119,1723535551908,-500.0,0.00022096,2]
[334758120,1723535551918,-500.0,0.00022096,2]
[334758121,1723535551928,-227.15583016,0.0002211,2]
[334758122,1723535551937,-500.0,0.00022138,2]
[334758123,1723535551947,-150.0,0.0002214,4]
[334758124,1723535551956,-150.0,0.0002216,4]
[334758125,1723535551965,-224.38282423,0.00022172,4]
[334758126,1723535551975,-500.0,0.00022175,2]
[334758127,1723535551984,-500.0,0.00022179,2]
[334758128,1723535551994,-3214.8,0.00022191,2]
[334758129,1723535552003,-702.35,0.00022191,2]
[334758130,1723535552012,-500.0,0.00022191,2]
[334758131,1723535552022,-571.12,0.00022191,2]
[334758132,1723535552032,-500.0,0.00022191,2]
[334758133,1723535552041,-371.07511623,0.00022191,2]
[334758134,1723535552050,-750.64,0.00022191,2]
[334758135,1723535552060,-500.0,0.00022191,2]
[334758136,1723535552070,-500.0,0.00022191,2]
[334758137,1723535552079,-442.26134452,0.00022191,2]
[334758138,1723535552089,-500.0,0.00022191,2]
[334758139,1723535552098,-500.0,0.00022191,2]
[334758140,1723535552107,-500.0,0.00022191,2]
[334758141,1723535552116,-588.49,0.00022191,2]
[334758142,1723535552126,-1015.8,0.00022191,2]
[334758143,1723535552136,-500.0,0.00022191,2]
[334758144,1723535552146,-500.0,0.00022191,2]
[334758145,1723535552155,-2000.0,0.00022191,2]
[334758146,1723535552165,-508.3,0.00022191,2]
[334758147,1723535552175,-500.0,0.00022191,2]
[334758148,1723535552184,-163.67023724,0.00022191,2]
[334758149,1723535552194,-969.43,0.00022191,2]
[334758150,1723535552203,-500.0,0.00022191,2]
[334758151,1723535552212,-788.34,0.00022191,2]
[334758152,1723535552221,-500.0,0.00022191,2]
[334758153,1723535552231,-500.0,0.00022191,2]
[334758154,1723535552240,-500.0,0.00022191,2]
[334758155,1723535552249,-510.82,0.00022191,2]
[334758156,1723535552259,-500.0,0.00022191,2]
[334758157,1723535552268,-1000.0,0.00022191,2]
[334758158,1723535552278,-2849.94,0.00022191,2]
[334758159,1723535552287,-500.0,0.00022191,2]
[334758160,1723535552297,-500.0,0.00022191,2]
[334758161,1723535552307,-500.0,0.00022191,2]
[334758162,1723535552317,-506.46,0.00022191,2]
[334758163,1723535552327,-903.07,0.00022191,2]
[334758164,1723535552336,-546.65,0.00022191,2]
[334758165,1723535552346,-500.0,0.00022191,2]
[334758166,1723535552356,-163.54026843,0.00022191,2]
[334758167,1723535552365,-1249.54,0.00022191,2]
[334758168,1723535552375,-803.11,0.00022191,2]
[334758169,1723535552385,-500.0,0.00022191,2]
[334758170,1723535552395,-1655.36,0.00022191,2]
[334758171,1723535552405,-500.0,0.00022191,2]
[334758172,1723535552414,-500.0,0.00022191,2]
[334758173,1723535552423,-500.0,0.00022191,2]
[334758174,1723535552433,-500.0,0.00022191,2]
[334758175,1723535552442,-150.29797293,0.00022191,2]
[334758176,1723535552452,-1068.76,0.00022191,2]
[334758177,1723535552461,-345.05295224,0.00022191,2]
[334758178,1723535552470,-613.06,0.00022191,2]
[334758179,1723535552480,-586.34879895,0.00022191,2]
[334758180,1723535552489,-1522.99,0.00022191,2]
[334758181,1723535552498,-914.8,0.00022191,2]
[334758182,1723535552508,-500.0,0.00022191,2]
[334758183,1723535552518,-682.0,0.00022191,2]
[334758184,1723535552528,-500.0,0.00022191,2]
[334758185,1723535552538,-500.0,0.00022191,2]
[334758186,1723535552550,-500.0,0.00022191,2]
[334758187,1723535552564,-500.0,0.00022191,2]
[334758188,1723535552574,-500.0,0.00022191,2]
[334758189,1723535552584,-500.0,0.00022191,2]
[334758190,1723535552594,-329.32807984,0.00022191,2]
[334758191,1723535552603,-562.12,0.00022191,2]
[334758192,1723535552614,-3000.0,0.000222,2]
[334758193,1723535552623,-304.3,0.000222,2]
[334758194,1723535552632,-1011.4,0.0002225,2]
[334758195,1723535552642,-700.0,0.00022251,2]
[334758196,1723535552652,-1000.0,0.0002226,2]
[334758197,1723535552662,-1900.0,0.00022264,2]
[334758198,1723535552671,-1900.0,0.00022281,2]
[334758199,1723535552680,-1000.0,0.00022286,2]
[334758200,1723535552689,-224.38282423,0.00022299,4]
[334758201,1723535552699,-389.2089824,0.00022306,2]
[334758202,1723535552708,-700.0,0.00022311,2]
[334758203,1723535552718,-500.0,0.00022326,2]
[334758204,1723535552727,-719.40081095,0.00022346,2]
[334758205,1723535552738,-150.0,0.0002235,4]
[334758206,1723535552749,-150.0,0.0002235,4]
[334758207,1723535552758,-3300.0,0.00022363,2]
[334758208,1723535552769,-3300.0,0.00022366,2]
[334758209,1723535552779,-500.0,0.00022366,2]
[334758210,1723535552789,-150.0,0.00022398,4]
[334758211,1723535552799,-500.0,0.00022399,2]
[334758212,1723535552810,-150.0,0.00022403,4]
[334758213,1723535552820,-500.0,0.0002241,2]
[334758214,1723535552830,-3300.0,0.0002242,2]
[334758215,1723535552839,-547.17912682,0.00022425,2]
[334758216,1723535552848,-224.38282423,0.00022427,4]
[334758217,1723535552859,-500.0,0.00022436,2]
[334758218,1723535552869,-700.0,0.00022436,2]
[334758219,1723535552880,-3214.8,0.00022465,2]
[334758220,1723535552891,-702.35,0.00022465,2]
[334758221,1723535552902,-500.0,0.00022465,2]
[334758222,1723535552912,-571.12,0.00022465,2]
[334758223,1723535552921,-500.0,0.00022465,2]
[334758224,1723535552932,-500.0,0.00022465,7]
[334758225,1723535552941,-500.0,0.00022465,7]
[334758226,1723535552952,-500.0,0.00022465,7]
[334758227,1723535552961,-500.0,0.00022465,7]
[334758228,1723535552971,-500.0,0.00022465,7]
[334758229,1723535552980,-500.0,0.00022465,7]
[334758230,1723535552990,-500.0,0.00022465,7]
[334758231,1723535552999,-500.0,0.00022465,7]
[334758232,1723535553008,-500.0,0.00022465,7]
[334758233,1723535553017,-500.0,0.00022465,7]
[334758234,1723535553026,-500.0,0.00022465,7]
[334758235,1723535553036,-500.0,0.00022465,7]
[334758236,1723535553046,-500.0,0.00022465,7]
[334758237,1723535553055,-750.64,0.00022465,2]
[334758238,1723535553068,-500.0,0.00022465,2]
[334758239,1723535553078,-500.0,0.00022465,2]
[334758240,1723535553087,-500.0,0.00022465,2]
[334758241,1723535553096,-500.0,0.00022465,2]
[334758242,1723535553105,-500.0,0.00022465,2]
[334758243,1723535553114,-588.49,0.00022465,2]
[334758244,1723535553123,-1015.8,0.00022465,2]
[334758245,1723535553132,-500.0,0.00022465,2]
[334758246,1723535553142,-500.0,0.00022465,2]
[334758247,1723535553151,-2000.0,0.00022465,2]
[334758248,1723535553161,-508.3,0.00022465,2]
[334758249,1723535553170,-500.0,0.00022465,2]
[334758250,1723535553180,-969.43,0.00022465,2]
[334758251,1723535553189,-535.79294848,0.00022465,2]
[334758252,1723535553199,-788.34,0.00022465,2]
[334758253,1723535553208,-500.0,0.00022465,2]
[334758254,1723535553217,-500.0,0.00022465,2]
[334758255,1723535553227,-500.0,0.00022465,2]
[334758256,1723535553236,-510.82,0.00022465,2]
[334758257,1723535553246,-500.0,0.00022465,2]
[334758258,1723535553255,-1000.0,0.00022465,2]
[334758259,1723535553264,-2849.94,0.00022465,2]
[334758260,1723535553274,-500.0,0.00022465,2]
[334758261,1723535553284,-500.0,0.00022465,2]
[334758262,1723535553293,-500.0,0.00022465,2]
[334758263,1723535553302,-506.46,0.00022465,2]
[334758264,1723535553313,-903.07,0.00022465,2]
[334758265,1723535553323,-546.65,0.00022465,2]
[334758266,1723535553332,-500.0,0.00022465,2]
[334758267,1723535553342,-1249.54,0.00022465,2]
[334758268,1723535553351,-803.11,0.00022465,2]
[334758269,1723535553361,-500.0,0.00022465,2]
[334758270,1723535553371,-1655.36,0.00022465,2]
[334758271,1723535553381,-500.0,0.00022465,2]
[334758272,1723535553390,-500.0,0.00022465,2]
[334758273,1723535553400,-500.0,0.00022465,2]
[334758274,1723535553410,-500.0,0.00022465,2]
[334758275,1723535553419,-1068.76,0.00022465,2]
[334758276,1723535553429,-613.06,0.00022465,2]
[334758277,1723535553438,-1522.99,0.00022465,2]
[334758278,1723535553448,-914.8,0.00022465,2]
[334758279,1723535553457,-500.0,0.00022465,2]
[334758280,1723535553467,-682.0,0.00022465,2]
[334758281,1723535553476,-500.0,0.00022465,2]
[334758282,1723535553486,-500.0,0.00022465,2]
[334758283,1723535553495,-500.0,0.00022465,2]
[334758284,1723535553504,-558.03397538,0.00022465,2]
[334758285,1723535553514,-500.0,0.00022465,2]
[334758286,1723535553524,-165.2002004,0.00022465,2]
[334758287,1723535553534,-562.12,0.00022465,2]
[334758288,1723535553543,-2053.09,0.00022465,2]
[334758289,1723535553553,-2053.09,0.00022465,2]
[334758290,1723535553566,-2053.09,0.00022465,2]
[334758291,1723535553576,-2053.09,0.00022465,2]
[334758292,1723535553585,-2053.09,0.00022465,2]
[334758293,1723535553595,-2053.09,0.00022465,2]
[334758294,1723535553605,-2053.09,0.00022465,2]
[334758295,1723535553614,-2053.09,0.00022465,2]
[334758296,1723535553624,-2053.09,0.00022465,2]
[334758297,1723535553633,-2053.09,0.00022465,2]
[334758298,1723535553645,-2053.09,0.00022465,2]
[334758299,1723535553655,-2053.09,0.00022465,2]
[334758300,1723535553664,-2053.09,0.00022465,2]
[334758301,1723535553673,-2053.09,0.00022465,2]
[334758302,1723535553683,-2053.09,0.00022465,2]
[334758303,1723535553692,-2053.09,0.00022465,2]
[334758304,1723535553701,-2053.09,0.00022465,2]
[334758305,1723535553711,-2053.09,0.00022465,2]
[334758306,1723535553721,-2053.09,0.00022465,2]
[334758307,1723535553730,-2053.09,0.00022465,2]
[334758308,1723535553739,-2053.09,0.00022465,2]
[334758309,1723535553748,-2053.09,0.00022465,2]
[334758310,1723535553758,-2053.09,0.00022465,2]
[334758311,1723535553767,-2053.2282552,0.00022465,2]
[334758312,1723535553776,-1000.0,0.00022466,2]
[334758313,1723535553785,-600.0,0.00022473,2]
[334758314,1723535553795,-152.0,0.0002248,10]
[334758315,1723535553804,-500.0,0.00022485,2]
[334758316,1723535553814,-150.0,0.00022495,2]
[334758317,1723535553823,-33497.91110674,0.000225,2]
[334758318,1723535553833,-600.0,0.00022531,2]
[334758319,1723535553842,-1900.0,0.0002254,2]
[334758320,1723535553851,-1900.0,0.00022549,2]
[334758321,1723535553861,-224.38282423,0.00022554,4]
[334758322,1723535553870,-500.0,0.0002258,2]
[334758323,1723535553879,-700.0,0.00022606,2]
[334758324,1723535553889,-500.0,0.00022627,2]
[334758325,1723535553899,-150.0,0.00022636,4]
[334758326,1723535553908,-3400.0,0.00022643,2]
[334758327,1723535553918,-3300.0,0.0002265,2]
[334758328,1723535553927,-500.0,0.00022659,2]
[334758329,1723535553937,-150.0,0.00022666,4]
[334758330,1723535553947,-224.38282423,0.00022682,4]
[334758331,1723535553957,-500.0,0.00022686,2]
[334758332,1723535553966,-463025.09,0.00022698,6]
[334758333,1723535553976,-3300.0,0.000227,2]
[334758334,1723535553985,-1000.0,0.00022701,2]
[334758335,1723535553995,-500.0,0.00022736,2]
[334758336,1723535554004,-1900.0,0.00022737,2]
[334758337,1723535554014,-3214.8,0.00022739,2]
[334758338,1723535554023,-702.35,0.00022739,2]
[334758339,1723535554033,-500.0,0.00022739,2]
[334758340,1723535554042,-571.12,0.00022739,2]
[334758341,1723535554053,-500.0,0.00022739,2]
[334758342,1723535554063,-404.22508026,0.00022739,7]
[334758343,1723535554072,-750.64,0.00022739,2]
[334758344,1723535554081,-500.0,0.00022739,2]
[334758345,1723535554091,-500.0,0.00022739,2]
[334758346,1723535554100,-502.99666279,0.00022739,2]
[334758347,1723535554109,-500.0,0.00022739,2]
[334758348,1723535554119,-500.0,0.00022739,2]
[334758349,1723535554128,-588.49,0.00022739,2]
[334758350,1723535554138,-1015.8,0.00022739,2]
[334758351,1723535554147,-500.0,0.00022739,2]
[334758352,1723535554157,-500.0,0.00022739,2]
[334758353,1723535554166,-2000.0,0.00022739,2]
[334758354,1723535554176,-508.3,0.00022739,2]
[334758355,1723535554186,-500.0,0.00022739,2]
[334758356,1723535554196,-969.43,0.00022739,2]
[334758357,1723535554206,-788.34,0.00022739,2]
[334758358,1723535554215,-500.0,0.00022739,2]
[334758359,1723535554225,-500.0,0.00022739,2]
[334758360,1723535554235,-500.0,0.00022739,2]
[334758361,1723535554244,-510.82,0.00022739,2]
[334758362,1723535554254,-500.0,0.00022739,2]
[334758363,1723535554263,-1000.0,0.00022739,2]
[334758364,1723535554272,-2849.94,0.00022739,2]
[334758365,1723535554282,-500.0,0.00022739,2]
[334758366,1723535554292,-500.0,0.00022739,2]
[334758367,1723535554301,-500.0,0.00022739,2]
[334758368,1723535554311,-506.46,0.00022739,2]
[334758369,1723535554321,-903.07,0.00022739,2]
[334758370,1723535554331,-500.0,0.00022739,2]
[334758371,1723535554340,-546.65,0.00022739,2]
[334758372,1723535554350,-1249.54,0.00022739,2]
[334758373,1723535554360,-803.11,0.00022739,2]
[334758374,1723535554370,-500.0,0.00022739,2]
[334758375,1723535554379,-1655.36,0.00022739,2]
[334758376,1723535554389,-500.0,0.00022739,2]
[334758377,1723535554399,-500.0,0.00022739,2]
[334758378,1723535554409,-500.0,0.00022739,2]
[334758379,1723535554419,-500.0,0.00022739,2]
[334758380,1723535554428,-1068.76,0.00022739,2]
[334758381,1723535554439,-613.06,0.00022739,2]
[334758382,1723535554449,-1522.99,0.00022739,2]
[334758383,1723535554459,-914.8,0.00022739,2]
[334758384,1723535554468,-500.0,0.00022739,2]
[334758385,1723535554478,-682.0,0.00022739,2]
[334758386,1723535554487,-500.0,0.00022739,2]
[334758387,1723535554496,-500.0,0.00022739,2]
[334758388,1723535554506,-500.0,0.00022739,2]
[334758389,1723535554516,-565.40491476,0.00022739,2]
[334758390,1723535554526,-562.12,0.00022739,2]
[334758391,1723535554535,-75813.15,0.00022772,6]
[334758392,1723535554545,-7826.44,0.00022772,6]
[334758393,1723535554554,-1000.0,0.00022778,2]
[334758394,1723535554567,-10540.79,0.000228,7]
[334758395,1723535554577,-90021.06364925,0.000228,2]
[334758396,1723535554588,-500.0,0.00022801,2]
[334758397,1723535554597,-600.0,0.00022804,2]
[334758398,1723535554608,-224.38282423,0.00022809,4]
[334758399,1723535554618,-500.0,0.0002283,2]
[334758400,1723535554627,-700.0,0.00022831,2]
[334758401,1723535554640,-1900.0,0.00022837,2]
[334758402,1723535554650,-3300.0,0.00022839,2]
[334758403,1723535554660,-338.18913153,0.00022861,2]
[334758404,1723535554670,-700.0,0.00022864,2]
[334758405,1723535554680,-150.0,0.00022874,4]
[334758406,1723535554690,-150.0,0.00022928,4]
[334758407,1723535554700,-600.0,0.00022931,2]
[334758408,1723535554710,-224.38282423,0.00022936,4]
[334758409,1723535554721,-500.0,0.00022944,2]
[334758410,1723535554731,-500.0,0.00022947,2]
[334758411,1723535554740,-600.0,0.00022949,2]
[334758412,1723535554751,-1900.0,0.00022959,2]
[334758413,1723535554761,-600.0,0.00022992,2]
[334758414,1723535554770,-20084.52094582,0.00023,7]
[334758415,1723535554781,-301.88796691,0.00023,15]
[334758416,1723535554791,-2478.36972633,0.00023,2]
[334758417,1723535554801,-31281.20544594,0.00023,7]
[334758418,1723535554811,-774.23272165,0.00023,5]
[334758419,1723535554820,-247.52064533,0.00023,3]
[334758420,1723535554830,-188.07162768,0.00023,2]
[334758421,1723535554840,-724.54930135,0.00023,2]
[334758422,1723535554850,-334.93530254,0.00023,2]
[334758423,1723535554860,-200.0,0.00023,2]
[334758424,1723535554870,-163181.31889575,0.00023,2]
[334758425,1723535554881,-10000.0,0.00023,2]
[334758426,1723535554892,-10000.0,0.00023,2]
[334758427,1723535554902,-10000.0,0.00023,2]
[334758428,1723535554912,-15576.01943153,0.00023,2]
[334758429,1723535554923,-10000.0,0.00023,2]
[334758430,1723535554933,-16441.06839064,0.00023,2]
[334758431,1723535554945,-10959.57309758,0.00023,2]
[334758432,1723535554955,-7572.64511458,0.00023,2]
[334758433,1723535554967,-10404.7470703,0.00023,2]
[334758434,1723535554977,-340.0,0.00023,2]
[334758435,1723535554987,-173.0,0.00023,2]
[334758436,1723535554998,-4173.1045496,0.00023,7]
[334758437,1723535555008,-155.0,0.00023012,2]
[334758438,1723535555018,-3214.8,0.00023013,2]
[334758439,1723535555028,-702.35,0.00023013,2]
[334758440,1723535555037,-500.0,0.00023013,2]
[334758441,1723535555047,-571.12,0.00023013,2]
[334758442,1723535555058,-500.0,0.00023013,2]
[334758443,1723535555068,-750.64,0.00023013,2]
[334758444,1723535555078,-500.0,0.00023013,2]
[334758445,1723535555087,-500.0,0.00023013,2]
[334758446,1723535555097,-500.0,0.00023013,2]
[334758447,1723535555109,-500.0,0.00023013,2]
[334758448,1723535555118,-588.49,0.00023013,2]
[334758449,1723535555128,-1015.8,0.00023013,2]
[334758450,1723535555137,-500.0,0.00023013,2]
[334758451,1723535555147,-500.0,0.00023013,2]
[334758452,1723535555156,-2000.0,0.00023013,2]
[334758453,1723535555166,-508.3,0.00023013,2]
[334758454,1723535555175,-500.0,0.00023013,2]
[334758455,1723535555186,-969.43,0.00023013,2]
[334758456,1723535555196,-788.34,0.00023013,2]
[334758457,1723535555205,-500.0,0.00023013,2]
[334758458,1723535555216,-500.0,0.00023013,2]
[334758459,1723535555227,-500.0,0.00023013,2]
[334758460,1723535555237,-510.82,0.00023013,2]
[334758461,1723535555247,-500.0,0.00023013,2]
[334758462,1723535555258,-550.5232777,0.00023013,2]
[334758463,1723535555269,-2849.94,0.00023013,2]
[334758464,1723535555280,-366.99102645,0.00023013,2]
[334758465,1723535555291,-500.0,0.00023013,2]
[334758466,1723535555302,-500.0,0.00023013,2]
[334758467,1723535555314,-506.46,0.00023013,2]
[334758468,1723535555323,-903.07,0.00023013,2]
[334758469,1723535555333,-500.0,0.00023013,2]
[334758470,1723535555344,-546.65,0.00023013,2]
[334758471,1723535555354,-1249.54,0.00023013,2]
[334758472,1723535555365,-803.11,0.00023013,2]
[334758473,1723535555376,-500.0,0.00023013,2]
[334758474,1723535555385,-1655.36,0.00023013,2]
[334758475,1723535555396,-500.0,0.00023013,2]
[334758476,1723535555406,-649.37915171,0.00023013,2]
[334758477,1723535555416,-244.57109461,0.00023013,2]
[334758478,1723535555427,-500.0,0.00023013,2]
[334758479,1723535555437,-1068.76,0.00023013,2]
[334758480,1723535555447,-613.06,0.00023013,2]
[334758481,1723535555458,-1522.99,0.00023013,2]
[334758482,1723535555469,-914.8,0.00023013,2]
[334758483,1723535555479,-500.0,0.00023013,2]
[334758484,1723535555488,-682.0,0.00023013,2]
[334758485,1723535555499,-500.0,0.00023013,2]
[334758486,1723535555509,-500.0,0.00023013,2]
[334758487,1723535555521,-562.12,0.00023013,2]
[334758488,1723535555531,-500.0,0.0002302,2]
[334758489,1723535555541,-700.0,0.00023022,2]
[334758490,1723535555551,-700.0,0.00023025,2]
[334758491,1723535555564,-3400.0,0.00023045,2]
[334758492,1723535555574,-152.0,0.00023045,11]
[334758493,1723535555584,-1900.0,0.00023059,2]
[334758494,1723535555594,-224.38282423,0.00023064,4]
[334758495,1723535555604,-3300.0,0.00023071,2]
[334758496,1723535555614,-150.0,0.00023071,2]
[334758497,1723535555624,-3400.0,0.00023087,2]
[334758498,1723535555634,-1000.0,0.00023095,2]
[334758499,1723535555645,-304.3,0.000231,2]
[334758500,1723535555656,-500.0,0.00023102,2]
[334758501,1723535555667,-150.0,0.00023112,4]
[334758502,1723535555676,-700.0,0.00023116,2]
[334758503,1723535555687,-600.0,0.0002315,2]
[334758504,1723535555699,-500.0,0.0002317,2]
[334758505,1723535555710,-3400.0,0.00023187,2]
[334758506,1723535555720,-150.0,0.00023191,4]
[334758507,1723535555732,-224.38282423,0.00023191,4]
[334758508,1723535555745,-150.0,0.00023191,4]
[334758509,1723535555756,-150.0,0.00023191,4]
[334758510,1723535555767,-180.0,0.00023205,2]
[334758511,1723535555777,-66636.26,0.00023223,6]
[334758512,1723535555788,-700.0,0.00023227,2]
[334758513,1723535555800,-600.0,0.00023235,2]
[334758514,1723535555811,-600.0,0.00023252,2]
[334758515,1723535555822,-1900.0,0.00023278,2]
[334758516,1723535555832,-700.0,0.00023281,2]
[334758517,1723535555843,-600.0,0.00023285,2]
[334758518,1723535555853,-700.0,0.00023286,2]
[334758519,1723535555863,-155.0,0.00023286,2]
[334758520,1723535555873,-175.75461462,0.00023287,5]
[334758521,1723535555882,-185.31440427,0.00023287,5]
[334758522,1723535555891,-3214.8,0.00023287,2]
[334758523,1723535555901,-702.35,0.00023287,2]
[334758524,1723535555910,-500.0,0.00023287,2]
[334758525,1723535555920,-571.12,0.00023287,2]
[334758526,1723535555930,-500.0,0.00023287,2]
[334758527,1723535555939,-750.64,0.00023287,2]
[334758528,1723535555949,-500.0,0.00023287,2]
[334758529,1723535555958,-500.0,0.00023287,2]
[334758530,1723535555968,-500.0,0.00023287,2]
[334758531,1723535555979,-402.40452987,0.00023287,2]
[334758532,1723535555991,-588.49,0.00023287,2]
[334758533,1723535556003,-1015.8,0.00023287,2]
[334758534,1723535556012,-320.79615318,0.00023287,2]
[334758535,1723535556023,-500.0,0.00023287,2]
[334758536,1723535556033,-2000.0,0.00023287,2]
[334758537,1723535556043,-508.3,0.00023287,2]
[334758538,1723535556054,-500.0,0.00023287,2]
[334758539,1723535556064,-969.43,0.00023287,2]
[334758540,1723535556073,-788.34,0.00023287,2]
[334758541,1723535556084,-312.1132542,0.00023287,2]
[334758542,1723535556093,-500.0,0.00023287,2]
[334758543,1723535556103,-500.0,0.00023287,2]
[334758544,1723535556113,-510.82,0.00023287,2]
[334758545,1723535556123,-500.0,0.00023287,2]
[334758546,1723535556133,-2849.94,0.00023287,2]
[334758547,1723535556144,-500.0,0.00023287,2]
[334758548,1723535556154,-500.0,0.00023287,2]
[334758549,1723535556165,-506.46,0.00023287,2]
[334758550,1723535556176,-903.07,0.00023287,2]
[334758551,1723535556186,-500.0,0.00023287,2]
[334758552,1723535556196,-546.65,0.00023287,2]
[334758553,1723535556207,-1249.54,0.00023287,2]
[334758554,1723535556216,-803.11,0.00023287,2]
[334758555,1723535556226,-500.0,0.00023287,2]
[334758556,1723535556237,-1655.36,0.00023287,2]
[334758557,1723535556247,-500.0,0.00023287,2]
[334758558,1723535556257,-500.0,0.00023287,2]
[334758559,1723535556267,-1068.76,0.00023287,2]
[334758560,1723535556276,-613.06,0.00023287,2]
[334758561,1723535556286,-1522.99,0.00023287,2]
[334758562,1723535556296,-914.8,0.00023287,2]
[334758563,1723535556306,-500.0,0.00023287,2]
[334758564,1723535556315,-682.0,0.00023287,2]
[334758565,1723535556325,-500.0,0.00023287,2]
[334758566,1723535556335,-500.0,0.00023287,2]
[334758567,1723535556345,-562.12,0.00023287,2]
[334758568,1723535556355,-379.99,0.00023288,2]
[334758569,1723535556365,-379.99,0.00023288,2]
[334758570,1723535556375,-380.0,0.00023288,2]
[334758571,1723535556385,-380.0,0.00023288,2]
[334758572,1723535556395,-380.0,0.00023288,2]
[334758573,1723535556405,-380.0,0.00023288,2]
[334758574,1723535556415,-380.0,0.00023288,2]
[334758575,1723535556424,-380.0,0.00023288,2]
[334758576,1723535556434,-400.3,0.00023288,2]
[334758577,1723535556444,-179.73,0.00023288,2]
[334758578,1723535556453,-151.06699252,0.00023298,2]
[334758579,1723535556464,-451495.55,0.00023298,6]
[334758580,1723535556475,-12077.73,0.00023298,6]
[334758581,1723535556485,-42609.21,0.00023298,6]
[334758582,1723535556495,-233.23,0.000233,31]
[334758583,1723535556751,-233.23,0.000233,31]
[334758584,1723535556766,-233.23,0.000233,31]
[334758585,1723535556776,-233.23,0.000233,31]
[334758586,1723535556785,-233.23,0.000233,31]
[334758587,1723535556795,-233.23,0.000233,31]
[334758588,1723535556805,-233.23,0.000233,31]
[334758589,1723535556815,-233.23,0.000233,31]
[334758590,1723535556824,-233.23,0.000233,31]
[334758591,1723535556834,-233.23,0.000233,31]
[334758592,1723535556844,-233.23,0.000233,31]
[334758593,1723535556854,-233.23,0.000233,31]
[334758594,1723535556864,-233.23,0.000233,31]
[334758595,1723535556873,-233.23,0.000233,31]
[334758596,1723535556883,-233.23,0.000233,31]
[334758597,1723535556893,-233.23,0.000233,31]
[334758598,1723535556903,-233.23,0.000233,31]
[334758599,1723535556913,-233.23,0.000233,31]
[334758600,1723535556923,-233.23,0.000233,31]
[334758601,1723535556932,-233.23,0.000233,31]
[334758602,1723535556942,-1000.0,0.00023309,2]
[334758603,1723535556951,-5000.0,0.0002331,2]
[334758604,1723535556961,-224.38282423,0.00023319,4]
[334758605,1723535556972,-600.0,0.00023319,2]
[334758606,1723535556982,-700.0,0.00023327,2]
[334758607,1723535556992,-3400.0,0.00023335,2]
[334758608,1723535557001,-500.0,0.00023343,2]
[334758609,1723535557011,-150.0,0.0002335,4]
[334758610,1723535557021,-3400.0,0.0002336,2]
[334758611,1723535557033,-500.0,0.0002337,2]
[334758612,1723535557043,-155.03501724,0.0002338,2]
[334758613,1723535557052,-61668.51,0.00023387,6]
[334758614,1723535557064,-34279.62,0.00023387,6]
[334758615,1723535557075,-11269.7,0.00023387,6]
[334758616,1723535557087,-53125.18,0.00023387,6]
[334758617,1723535557096,-33630.73,0.00023387,6]